[Event "WYCC 2018 O14"]
[Site "Halkidiki"]
[Date "2018.10.20"]
[Round "1"]
[White "Suleymanli, Aydin"]
[Black "Ngo, Duc Tri"]
[Result "0-1"]
[ECO "D50"]
[WhiteElo "2313"]
[BlackElo "1883"]
[Annotator "NA"]
[PlyCount "76"]
[EventDate "2018.10.20"]
[EventType "swiss"]
[EventCountry "GRE"]
[SourceTitle "playchess.com"]
[Source "ChessBase"]
[SourceQuality "1"]
[TimeControl "40/5400+30:1800+30"]

1. d4 {[%emt 0:00:00]} Nf6 {[%emt 0:00:29]} 2. c4 {[%emt 0:00:23]} e6 {[%emt 0:00:48]} 3. Nc3 {[%emt 0:01:13]} d5 {[%emt 0:00:12]} 4. Bg5 {[%emt 0:00:22]} dxc4 {[%emt 0:08:28]} 5. e3 {[%emt 0:06:06]} c5 {[%emt 0:03:27]} 6. Bxc4 {[%emt 0:02:56]} cxd4 {[%emt 0:00:22]} 7. exd4 {[%emt 0:00:11]} Nc6 {[%emt 0:00:29]} 8. Nf3 {[%emt 0:06:53]} Be7 {[%emt 0:00:08]} 9. O-O {[%emt 0:00:05]} O-O {[%emt 0:03:35]} 10. a3 {[%emt 0:16:16]} Nd5 {[%emt 0:00:21]} 11. Bxd5 {[%emt 0:14:07]} Bxg5 {[%emt 0:07:48]} 12. Bxc6 {[%emt 0:01:36]} bxc6 {[%emt 0:00:13]} 13. Ne4 $11 {[%emt 0:01:33]} Be7 {[%emt 0:08:47]} 14. Rc1 {[%emt 0:09:08]} Rb8 {[%emt 0:24:28]} 15. Rc2 {[%emt 0:18:55]} Ba6 {[%emt 0:05:08]} 16. Re1 {[%emt 0:00:22]} Qd5 {[%emt 0:03:13]} 17. Ne5 {[%emt 0:04:20]} Bb7 {[%emt 0:04:27]} 18. Nc5 {[%emt 0:02:58]} Bc8 {[%emt 0:00:07]} 19. Qc1 {[%emt 0:09:04]} Bf6 {[%emt 0:02:22]} 20. b4 {[%emt 0:02:51]} Ra8 {[%emt 0:01:32]} 21. Qf4 {[%emt 0:00:37]} a5 {[%emt 0:00:28]} 22. Ne4 {[%emt 0:00:31]} Bxe5 {[%emt 0:00:15]} 23. dxe5 {[%emt 0:00:02]} axb4 {[%emt 0:04:18]} 24. Rd2 {[%emt 0:00:59]} Qb3 {[%emt 0:02:49]} 25. Nf6+ {[%emt 0:00:30]} Kh8 {[%emt 0:00:58]} 26. axb4 {[%emt 0:00:30]} Qc3 {[%emt 0:01:42]} 27. Rdd1 {[%emt 0:00:29]} Ra4 {[%emt 0:07:07]} 28. Qh4 {[%emt 0:00:29]} h6 {[%emt 0:00:06]} 29. Qe4 {[%emt 0:00:32]} gxf6 {[%emt 0:00:05]} 30. Qf4 {[%emt 0:00:31]} Kh7 {[%emt 0:01:36]} 31. Qxf6 {[%emt 0:00:27]} Ba6 {[%emt 0:02:31]} 32. h3 {[%emt 0:00:32]} Qxb4 {[%emt 0:00:37]} 33. g3 {[%emt 0:00:31]} Bd3 {[%emt 0:00:10]} 34. Qf3 {[%emt 0:00:29]} Be4 {[%emt 0:00:20]} 35. Qe3 {[%emt 0:00:29]} Bg6 {[%emt 0:00:23]} 36. Qf3 {[%emt 0:00:15]} c5 {[%emt 0:00:30]} 37. Rf1 {[%emt 0:00:18]} Ra3 {[%emt 0:01:05]} 38. Qf6 Qe4 0-1

[Event "WYCC 2018 O14"]
[Site "Halkidiki"]
[Date "2018.10.20"]
[Round "1"]
[White "Popov, Konstantin"]
[Black "Sanger, Jake M"]
[Result "1/2-1/2"]
[ECO "C06"]
[WhiteElo "2304"]
[BlackElo "1880"]
[Annotator "NA"]
[PlyCount "115"]
[EventDate "2018.10.20"]
[EventType "swiss"]
[EventCountry "GRE"]
[SourceTitle "playchess.com"]
[Source "ChessBase"]
[SourceQuality "1"]
[TimeControl "40/5400+30:1800+30"]

1. e4 {[%emt 0:00:00]} e6 {[%emt 0:00:00]} 2. d4 {[%emt 0:00:00]} d5 {[%emt 0:00:00]} 3. Nd2 {[%emt 0:00:00]} Nf6 {[%emt 0:00:00]} 4. e5 {[%emt 0:00:07]} Nfd7 {[%emt 0:00:00]} 5. Bd3 {[%emt 0:00:19]} c5 {[%emt 0:00:00]} 6. c3 {[%emt 0:00:07]} Nc6 {[%emt 0:00:01]} 7. Ne2 {[%emt 0:00:09]} cxd4 {[%emt 0:00:15]} 8. cxd4 {[%emt 0:00:06]} f6 {[%emt 0:00:02]} 9. exf6 {[%emt 0:00:07]} Nxf6 {[%emt 0:00:05]} 10. Nf3 {[%emt 0:00:22]} Bd6 {[%emt 0:00:07]} 11. O-O {[%emt 0:00:19]} Qc7 {[%emt 0:00:04]} 12. h3 {[%emt 0:01:00]} O-O {[%emt 0:00:13]} 13. Be3 {[%emt 0:01:09]} Bd7 {[%emt 0:01:05]} 14. Rc1 {[%emt 0:01:28]} Be8 {[%emt 0:05:57] C06: French Tarrasch: 3...Nf6 4 e5 Nfd7 5 Bd3 main lines} 15. Qb3 {[%emt 0:10:00]} Bh5 $146 {[%emt 0:16:03]} ({Predecessor:} 15... Qd7 16. Bf4 Bxf4 17. Nxf4 Qd6 18. Ne2 Rb8 19. Rc3 Bh5 20. g4 Bg6 21. Bxg6 hxg6 22. Qa3 Qxa3 23. Rxa3 {½-½ (37) Bolignano,G (2286)-Latronico,N (2457) ICCF email 2013}) 16. Ne5 {[%emt 0:04:31]} Bxe2 {[%emt 0:02:38]} 17. Bxe2 {[%emt 0:00:11]} Bxe5 {[%emt 0:04:15]} 18. dxe5 {[%emt 0:00:06]} Qxe5 {[%emt 0:10:28]} 19. Qxb7 {[%emt 0:02:41]} d4 {[%emt 0:05:34]} 20. Rxc6 {[%emt 0:18:19]} dxe3 {[%emt 0:00:52]} 21. Qb3 {[%emt 0:05:30]} exf2+ {[%emt 0:05:03]} 22. Rxf2 {[%emt 0:02:20]} Nd5 {[%emt 0:07:19]} 23. Bf3 {[%emt 0:07:44]} Rad8 {[%emt 0:01:28]} 24. Qa4 {[%emt 0:27:08]} Qe1+ {[%emt 0:13:40]} 25. Rf1 {[%emt 0:00:09]} Qe3+ {[%emt 0:00:09]} 26. Kh1 {[%emt 0:02:32]} Ne7 {[%emt 0:05:52]} 27. Rc3 {[%emt 0:01:22]} Qb6 {[%emt 0:00:23]} 28. Rb3 {[%emt 0:03:54]} Qc5 {[%emt 0:01:15]} 29. Qb4 {[%emt 0:03:49]} Qg5 {[%emt 0:04:38]} 30. Qg4 {[%emt 0:02:05]} Qe5 {[%emt 0:00:58]} 31. Qb4 {[%emt 0:03:23]} Nf5 {[%emt 0:01:01]} 32. Re1 {[%emt 0:00:15]} Qf6 {[%emt 0:05:07]} 33. Qf4 {[%emt 0:02:36]} Qg6 {[%emt 0:02:28]} 34. Qe5 {[%emt 0:00:37]} Nd4 {[%emt 0:00:57]} 35. Be4 {[%emt 0:00:38]} Qf6 {[%emt 0:03:17]} 36. Qxf6 {[%emt 0:01:10]} gxf6 {[%emt 0:00:18]} 37. Rg3+ {[%emt 0:00:27]} Kh8 {[%emt 0:00:45]} 38. Ra3 {[%emt 0:00:12]} Rf7 {[%emt 0:01:25]} 39. Bd3 {[%emt 0:00:34]} Rc7 {[%emt 0:00:38]} 40. Re3 {[%emt 0:00:00]} Rd6 {[%emt 0:00:00]} 41. Ra4 {[%emt 0:04:56]} e5 {[%emt 0:04:49]} 42. Rc4 {[%emt 0:03:17]} Rxc4 {[%emt 0:04:26]} 43. Bxc4 {[%emt 0:00:04]} Kg7 {[%emt 0:01:50]} 44. Kg1 {[%emt 0:01:34]} Nf5 {[%emt 0:01:01]} 45. Rd3 $15 {[%emt 0:02:31]} e4 {[%emt 0:06:15]} 46. Rxd6 {[%emt 0:00:57]} Nxd6 {[%emt 0:00:03]} 47. Be2 {[%emt 0:00:32]} f5 {[%emt 0:00:19]} 48. g3 {[%emt 0:00:12]} Kf6 {[%emt 0:00:09]} 49. Kf2 {[%emt 0:00:05]} Ke5 {[%emt 0:00:33]} 50. Ke3 {[%emt 0:00:07]} Nf7 {[%emt 0:00:48]} 51. b4 {[%emt 0:01:35]} Ng5 {[%emt 0:00:34]} 52. Bf1 {[%emt 0:06:44]} Ne6 {[%emt 0:01:01]} 53. a4 {[%emt 0:02:51]} f4+ {[%emt 0:03:01]} 54. gxf4+ {[%emt 0:00:17]} Nxf4 {[%emt 0:00:12]} 55. Bc4 {[%emt 0:01:11]} Nxh3 {[%emt 0:08:48]} 56. a5 {[%emt 0:00:17]} Nf4 {[%emt 0:00:07]} 57. b5 {[%emt 0:00:13]} Nd5+ {[%emt 0:00:17]} 58. Bxd5 {[%emt 0:00:34]} 1/2-1/2

[Event "WYCC 2018 O14"]
[Site "Halkidiki"]
[Date "2018.10.20"]
[Round "1"]
[White "Tadic, Stefan"]
[Black "Muntean, Victor"]
[Result "1-0"]
[ECO "C85"]
[WhiteElo "2295"]
[BlackElo "1876"]
[Annotator "NA"]
[PlyCount "55"]
[EventDate "2018.10.20"]
[EventType "swiss"]
[EventCountry "GRE"]
[SourceTitle "playchess.com"]
[Source "ChessBase"]
[SourceQuality "1"]
[TimeControl "40/5400+30:1800+30"]

1. e4 {[%emt 0:00:00]} e5 {[%emt 0:00:00]} 2. Nf3 {[%emt 0:00:07]} Nc6 {[%emt 0:00:00]} 3. Bb5 {[%emt 0:01:21]} a6 {[%emt 0:00:00]} 4. Ba4 {[%emt 0:00:55]} Nf6 {[%emt 0:00:00]} 5. O-O {[%emt 0:00:51]} Be7 {[%emt 0:00:11]} 6. Bxc6 {[%emt 0:02:15]} dxc6 {[%emt 0:00:53]} 7. d3 {[%emt 0:01:59]} Qd6 {[%emt 0:01:34]} 8. Nbd2 {[%emt 0:20:37]} Be6 {[%emt 0:02:06]} 9. b3 {[%emt 0:26:16]} b5 {[%emt 0:04:53] C85: Closed Ruy Lopez: Deferred Exchange Variation} (9... Nd7 10. a4 O-O 11. Bb2 Rfd8 12. Qe2 Bf6 13. h3 g6 14. Rfd1 Bg7 15. Nf1 c5 16. Ne3 Qe7 17. a5 Re8 18. Rab1 b5 {½-½ (56) McShane,L (2655)-Adams,M (2745) Germany 2017}) 10. Re1 $146 {[%emt 0:08:45]} ({Predecessor:} 10. Bb2 Nd7 11. Qe2 c5 12. Rfd1 O-O 13. Nf1 Bf6 14. Ne3 g6 15. h3 h6 16. c3 Rfe8 17. d4 cxd4 18. cxd4 exd4 19. Nxd4 {1-0 (55) Shtyrenkov,V (2393)-Kharchenko,B (2448) Alushta 2010}) 10... Nd7 {[%emt 0:08:04]} 11. Nf1 {[%emt 0:00:50]} O-O-O {[%emt 0:03:52]} 12. Bb2 {[%emt 0:11:02]} c5 {[%emt 0:05:45]} 13. c3 {[%emt 0:04:54]} f6 {[%emt 0:06:38]} 14. d4 {[%emt 0:03:29]} c6 {[%emt 0:04:18]} 15. Ne3 {[%emt 0:01:17]} g6 {[%emt 0:06:43]} 16. a4 {[%emt 0:03:20]} cxd4 {[%emt 0:04:53]} 17. cxd4 {[%emt 0:00:15]} exd4 {[%emt 0:00:39]} 18. Nxd4 {[%emt 0:01:21]} Nc5 {[%emt 0:01:16]} 19. Qc2 {[%emt 0:00:39]} Kb7 {[%emt 0:03:49]} 20. Red1 {[%emt 0:00:22]} Qc7 {[%emt 0:02:24]} 21. axb5 {[%emt 0:03:03]} cxb5 {[%emt 0:01:35]} 22. b4 {[%emt 0:00:54]} Rxd4 {[%emt 0:00:44]} 23. Rxd4 $18 {[%emt 0:00:17]} (23. Bxd4 $142 Na4 24. Qe2) 23... Nb3 {[%emt 0:00:11]} 24. Qxc7+ {[%emt 0:00:18]} Kxc7 {[%emt 0:00:08]} 25. Rxa6 {[%emt 0:00:25]} Nxd4 {[%emt 0:01:01]} 26. Bxd4 {[%emt 0:00:07]} Kd7 {[%emt 0:05:20]} 27. Ra7+ {[%emt 0:00:10]} Kd8 {[%emt 0:01:24]} 28. Bb6+ {[%emt 0:00:15]} 1-0

[Event "WYCC 2018 O14"]
[Site "Halkidiki"]
[Date "2018.10.20"]
[Round "1"]
[White "Ognean, Mihnea-Ionut"]
[Black "Naqopia, Giorgi"]
[Result "1-0"]
[ECO "C41"]
[WhiteElo "2291"]
[BlackElo "1857"]
[Annotator "NA"]
[PlyCount "99"]
[EventDate "2018.10.20"]
[EventType "swiss"]
[EventCountry "GRE"]
[SourceTitle "playchess.com"]
[Source "ChessBase"]
[SourceQuality "1"]
[TimeControl "40/5400+30:1800+30"]

1. d4 {[%emt 0:00:00]} d6 {[%emt 0:00:00]} 2. e4 {[%emt 0:00:00]} Nf6 {[%emt 0:00:00]} 3. Nc3 {[%emt 0:00:00]} e5 {[%emt 0:00:00]} 4. Nf3 {[%emt 0:00:07]} Nbd7 {[%emt 0:00:00]} 5. Bc4 {[%emt 0:00:23]} Be7 {[%emt 0:00:00]} 6. O-O {[%emt 0:00:11]} O-O {[%emt 0:00:00]} 7. a4 {[%emt 0:00:02]} a5 {[%emt 0:02:28]} 8. h3 {[%emt 0:06:41]} h6 {[%emt 0:09:42]} 9. Re1 {[%emt 0:22:55]} c6 {[%emt 0:00:21]} 10. Be3 {[%emt 0:15:34]} Qc7 {[%emt 0:01:20]} 11. Nh4 {[%emt 0:00:31]} Re8 {[%emt 0:03:15]} 12. Qf3 $11 {[%emt 0:01:42]} d5 {[%emt 0:28:38]} 13. exd5 {[%emt 0:11:57]} e4 {[%emt 0:01:54]} 14. Nxe4 {[%emt 0:04:59]} cxd5 {[%emt 0:01:23]} 15. Nxf6+ {[%emt 0:00:05]} Bxf6 {[%emt 0:01:38]} 16. Bxd5 {[%emt 0:00:27]} Nb6 {[%emt 0:02:19]} 17. Nf5 {[%emt 0:05:39]} Qd7 {[%emt 0:08:57]} 18. Be4 {[%emt 0:12:09]} Rxe4 {[%emt 0:02:07]} 19. Nxh6+ {[%emt 0:00:07]} gxh6 {[%emt 0:00:03]} 20. Qxe4 {[%emt 0:00:04]} Qf5 {[%emt 0:01:05]} 21. Bxh6 {[%emt 0:07:21]} Qxe4 {[%emt 0:00:55]} 22. Rxe4 {[%emt 0:00:04]} Kh7 {[%emt 0:00:28]} 23. Bf4 {[%emt 0:05:31]} Bf5 {[%emt 0:02:08]} 24. Re2 {[%emt 0:00:38]} Bxd4 {[%emt 0:03:17]} 25. c3 {[%emt 0:00:15]} Bf6 {[%emt 0:02:44]} 26. g4 {[%emt 0:02:04]} Be6 {[%emt 0:08:47]} 27. Be5 {[%emt 0:00:53]} Bc4 {[%emt 0:08:23]} 28. Re3 {[%emt 0:01:32]} Kg6 {[%emt 0:07:04]} 29. Bxf6 {[%emt 0:00:19]} Kxf6 {[%emt 0:00:04]} 30. Kh2 {[%emt 0:00:19]} Bb3 {[%emt 0:01:48]} 31. Rf3+ {[%emt 0:01:34]} Kg7 {[%emt 0:01:37]} 32. Rf4 {[%emt 0:00:11]} Nc4 {[%emt 0:01:45]} 33. Re1 {[%emt 0:00:52]} Nd6 {[%emt 0:01:24]} 34. Rd4 {[%emt 0:00:35]} Re8 {[%emt 0:00:42]} 35. Rxe8 {[%emt 0:00:20]} Nxe8 {[%emt 0:00:01]} 36. Rd7 {[%emt 0:00:15]} Bxa4 {[%emt 0:00:53]} 37. Rxb7 {[%emt 0:00:05]} Bc6 {[%emt 0:00:39]} 38. Rb6 {[%emt 0:00:23]} Bd7 {[%emt 0:00:08]} 39. b3 {[%emt 0:00:31]} Nf6 {[%emt 0:00:56]} 40. Ra6 {[%emt 0:00:00]} Be6 {[%emt 0:00:00]} 41. c4 {[%emt 0:00:51]} Ne4 {[%emt 0:00:20]} 42. Rxa5 {[%emt 0:01:03]} Nxf2 {[%emt 0:01:29]} 43. Kg3 {[%emt 0:02:15]} Nd3 {[%emt 0:03:28]} 44. Rb5 {[%emt 0:01:57]} Kf6 {[%emt 0:12:10]} 45. g5+ {[%emt 0:01:49]} Kg6 {[%emt 0:00:17]} 46. h4 {[%emt 0:00:04]} Kh5 {[%emt 0:06:51]} 47. c5 {[%emt 0:03:18]} Ne5 {[%emt 0:00:23]} 48. b4 {[%emt 0:00:22]} Bd7 {[%emt 0:06:25]} 49. Rb6 {[%emt 0:01:14]} Ng6 {[%emt 0:01:14]} 50. Rf6 {[%emt 0:00:40]} 1-0

[Event "WYCC 2018 O14"]
[Site "Halkidiki"]
[Date "2018.10.20"]
[Round "1"]
[White "Cohen Revivo, Shoham"]
[Black "Nakahara, Kan"]
[Result "1/2-1/2"]
[ECO "C00"]
[WhiteElo "2289"]
[BlackElo "1850"]
[Annotator "NA"]
[PlyCount "96"]
[EventDate "2018.10.20"]
[EventType "swiss"]
[EventCountry "GRE"]
[SourceTitle "playchess.com"]
[Source "ChessBase"]
[SourceQuality "1"]
[TimeControl "40/5400+30:1800+30"]

1. e4 {[%emt 0:00:00]} e6 {[%emt 0:00:00]} 2. Qe2 {[%emt 0:00:27]} Nc6 {[%emt 0:04:02]} 3. Nf3 {[%emt 0:00:28]} e5 {[%emt 0:03:12]} 4. c3 {[%emt 0:00:23]} d6 {[%emt 0:00:44] C00: French: Unusual White 2nd moves} 5. d4 {[%emt 0:02:16]} Nf6 {[%emt 0:04:19]} 6. h3 {[%emt 0:00:16]} a6 $146 {[%emt 0:01:04]} ({Predecessor:} 6... g6 7. Na3 Bg7 8. d5 Ne7 9. Qc2 Nh5 10. g4 Nf4 11. Bxf4 exf4 12. Qd2 {0-1 (66) Ponce Cano,A (2286)-Arribas Lopez,A (2534) Llucmajor 2015}) 7. g3 {[%emt 0:01:50]} Be7 {[%emt 0:01:23]} 8. d5 {[%emt 0:00:08]} Nb8 {[%emt 0:00:37]} 9. c4 {[%emt 0:01:11]} Nbd7 {[%emt 0:06:19]} 10. Nc3 {[%emt 0:00:12]} O-O {[%emt 0:01:04]} 11. Bg2 {[%emt 0:00:06]} b5 {[%emt 0:06:18]} 12. O-O {[%emt 0:03:54]} b4 {[%emt 0:05:14]} 13. Nd1 {[%emt 0:04:31]} Nc5 {[%emt 0:07:44]} 14. Ne1 {[%emt 0:00:33]} Nfd7 {[%emt 0:07:56]} 15. Ne3 {[%emt 0:03:01]} Nf6 {[%emt 0:05:48]} 16. N3c2 {[%emt 0:02:19]} Rb8 {[%emt 0:03:47]} 17. Nd3 {[%emt 0:02:10]} Nxd3 {[%emt 0:01:15]} 18. Qxd3 {[%emt 0:00:02]} Nd7 {[%emt 0:02:24]} 19. f4 {[%emt 0:04:07]} b3 {[%emt 0:06:32]} 20. Ne3 {[%emt 0:04:01]} bxa2 {[%emt 0:01:57]} 21. Rxa2 {[%emt 0:04:27]} Nc5 {[%emt 0:01:34]} 22. Qe2 {[%emt 0:00:10]} Nb3 {[%emt 0:02:48]} 23. fxe5 {[%emt 0:07:11]} dxe5 {[%emt 0:02:54]} 24. Nc2 {[%emt 0:05:04]} Nxc1 {[%emt 0:00:44]} 25. Rxc1 {[%emt 0:00:08]} Bc5+ {[%emt 0:01:15]} 26. Kh2 $19 {[%emt 0:00:36]} Qg5 {[%emt 0:01:18]} 27. Rf1 {[%emt 0:03:23]} Rb3 {[%emt 0:01:31]} 28. Qe1 {[%emt 0:09:50]} f5 {[%emt 0:06:34]} 29. Ra5 {[%emt 0:05:19]} Be7 {[%emt 0:07:01]} 30. h4 {[%emt 0:16:09]} Qg6 {[%emt 0:01:12]} 31. d6 {[%emt 0:02:31]} Bxd6 {[%emt 0:02:14]} 32. c5 {[%emt 0:00:13]} Be7 {[%emt 0:00:09]} 33. exf5 {[%emt 0:00:30]} Qf7 {[%emt 0:00:56]} 34. c6 {[%emt 0:03:28]} Rd8 {[%emt 0:01:13]} 35. Rxe5 {[%emt 0:03:52]} Bf8 {[%emt 0:00:10]} 36. Ne3 {[%emt 0:08:13]} Rbd3 {[%emt 0:00:58]} 37. Qa5 {[%emt 0:01:27]} Kh8 {[%emt 0:01:02]} 38. Re4 {[%emt 0:07:35]} Bd6 {[%emt 0:01:36]} 39. Qe1 {[%emt 0:00:27]} Rf8 {[%emt 0:01:04]} 40. Qe2 {[%emt 0:00:00]} Rb3 {[%emt 0:00:00]} 41. Rf3 {[%emt 0:15:25]} Rb6 {[%emt 0:12:23]} 42. Qc2 {[%emt 0:04:47]} Qf6 {[%emt 0:03:28]} 43. b3 {[%emt 0:01:13]} Rxc6 {[%emt 0:02:07]} 44. Qe2 {[%emt 0:02:15]} Rc5 {[%emt 0:01:11]} 45. Nc4 {[%emt 0:06:57]} Rxf5 {[%emt 0:08:34]} 46. Rxf5 {[%emt 0:00:08]} Bxf5 {[%emt 0:00:09]} 47. Nxd6 {[%emt 0:00:03]} Qxd6 {[%emt 0:00:21]} 48. Rf4 {[%emt 0:00:12]} Bc8 {[%emt 0:00:58]} 1/2-1/2

[Event "WYCC 2018 O14"]
[Site "Halkidiki"]
[Date "2018.10.20"]
[Round "1"]
[White "Kushagra Mohan"]
[Black "Ilic, Nicholas"]
[Result "1-0"]
[ECO "B76"]
[WhiteElo "2283"]
[BlackElo "1842"]
[Annotator "NA"]
[PlyCount "56"]
[EventDate "2018.10.20"]
[EventType "swiss"]
[EventCountry "GRE"]
[SourceTitle "playchess.com"]
[Source "ChessBase"]
[SourceQuality "1"]
[TimeControl "40/5400+30:1800+30"]

1. e4 {[%emt 0:00:00]} c5 {[%emt 0:00:00]} 2. Nf3 {[%emt 0:00:00]} d6 {[%emt 0:00:00]} 3. d4 {[%emt 0:00:00]} cxd4 {[%emt 0:00:00]} 4. Nxd4 {[%emt 0:00:00]} Nf6 {[%emt 0:00:05]} 5. Nc3 {[%emt 0:00:00]} g6 {[%emt 0:00:09]} 6. Be3 {[%emt 0:00:00]} Bg7 {[%emt 0:00:08]} 7. f3 {[%emt 0:00:01]} O-O {[%emt 0:00:09]} 8. Qd2 {[%emt 0:00:02]} Nc6 {[%emt 0:00:12]} 9. O-O-O {[%emt 0:00:03]} d5 {[%emt 0:00:13]} 10. Qe1 {[%emt 0:00:34]} e5 {[%emt 0:02:29]} 11. Nxc6 {[%emt 0:00:06]} bxc6 {[%emt 0:00:11]} 12. exd5 {[%emt 0:00:03]} Nxd5 {[%emt 0:00:15]} 13. Bc4 {[%emt 0:00:09]} Be6 {[%emt 0:00:08]} 14. Kb1 {[%emt 0:00:04] [#] B76: Sicilian Dragon: Yugoslav Attack, 9 g4 and 9 0-0-0} f5 $146 {[%emt 0:10:50]} ({Predecessor:} 14... Rb8 15. Ne4 Qc7 16. Bc5 Rfd8 17. g4 h6 18. Bb3 a5 19. Rg1 Rd7 20. h4 Rbd8 21. a4 Nf4 22. Rxd7 Rxd7 23. Bxe6 Nxe6 {½-½ (32) Anand,V (2776)-Nakamura,H (2787) Moscow 2018}) 15. h4 {[%emt 0:13:33]} Rf7 {[%emt 0:09:32]} 16. h5 {[%emt 0:25:41]} Rd7 {[%emt 0:10:18]} 17. Nxd5 {[%emt 0:00:12]} cxd5 {[%emt 0:01:34]} 18. Bb3 {[%emt 0:00:43]} f4 {[%emt 0:03:55]} 19. Bxf4 {[%emt 0:01:29]} Qf6 {[%emt 0:00:19]} 20. Bxe5 {[%emt 0:01:16]} Qxe5 {[%emt 0:00:12]} 21. Qxe5 {[%emt 0:00:04]} Bxe5 {[%emt 0:00:08]} 22. Rhe1 {[%emt 0:00:02]} Bxb2 {[%emt 0:04:00]} 23. Rxe6 {[%emt 0:01:28]} Bg7 {[%emt 0:08:22]} 24. hxg6 {[%emt 0:00:09]} Rb8 {[%emt 0:00:40]} 25. gxh7+ {[%emt 0:01:05]} Kxh7 {[%emt 0:00:09]} 26. g4 {[%emt 0:00:35]} a5 {[%emt 0:00:43]} 27. a4 {[%emt 0:00:15]} Bc3 {[%emt 0:02:34]} 28. Rc6 $18 {[%emt 0:00:14]} d4 {[%emt 0:01:22]} 1-0

[Event "WYCC 2018 O14"]
[Site "Halkidiki"]
[Date "2018.10.20"]
[Round "1"]
[White "Avila Pavas, Santiago"]
[Black "Stijve, Niels"]
[Result "1-0"]
[ECO "D02"]
[WhiteElo "2277"]
[BlackElo "1837"]
[Annotator "NA"]
[PlyCount "53"]
[EventDate "2018.10.20"]
[EventType "swiss"]
[EventCountry "GRE"]
[SourceTitle "playchess.com"]
[Source "ChessBase"]
[SourceQuality "1"]
[TimeControl "40/5400+30:1800+30"]

1. d4 {[%emt 0:00:00]} d5 {[%emt 0:00:00]} 2. Nf3 {[%emt 0:00:00]} e6 {[%emt 0:00:00]} 3. g3 {[%emt 0:00:00]} Nf6 {[%emt 0:00:26]} 4. Bg2 {[%emt 0:00:05]} Be7 {[%emt 0:00:24]} 5. O-O {[%emt 0:00:20]} O-O {[%emt 0:00:24]} 6. c4 {[%emt 0:00:29]} c6 {[%emt 0:03:57]} 7. Nc3 {[%emt 0:00:58]} Nbd7 {[%emt 0:13:44]} 8. Nd2 {[%emt 0:10:12]} Qb6 {[%emt 0:24:27]} 9. e3 {[%emt 0:25:34]} Rd8 {[%emt 0:07:00]} 10. b3 {[%emt 0:05:00]} e5 {[%emt 0:07:16]} 11. cxd5 {[%emt 0:13:48]} cxd5 {[%emt 0:07:31]} 12. Bb2 {[%emt 0:00:32]} Qe6 {[%emt 0:08:39]} 13. dxe5 {[%emt 0:03:42]} Nxe5 {[%emt 0:01:04]} 14. Nf3 {[%emt 0:00:07]} b6 {[%emt 0:10:33]} 15. Nxe5 {[%emt 0:00:59]} Ba6 {[%emt 0:05:07]} 16. Nf3 {[%emt 0:01:12]} Bxf1 {[%emt 0:00:29]} 17. Qxf1 {[%emt 0:00:06]} a6 $18 {[%emt 0:03:48]} 18. Nd4 {[%emt 0:00:39]} Qd7 {[%emt 0:00:21]} 19. Rc1 {[%emt 0:00:13]} Bc5 {[%emt 0:00:47]} 20. Na4 {[%emt 0:00:13]} Qd6 {[%emt 0:01:00]} 21. Nf5 {[%emt 0:01:15]} Qe6 {[%emt 0:00:33]} 22. Bh3 {[%emt 0:00:54]} Ne4 {[%emt 0:01:49]} 23. Bxg7 {[%emt 0:03:01]} Qe8 {[%emt 0:01:22]} 24. Nxc5 {[%emt 0:01:12]} Nxc5 {[%emt 0:00:01]} 25. Qe2 {[%emt 0:00:21]} Qe4 {[%emt 0:01:03]} 26. Bf6 {[%emt 0:00:49]} Rdb8 {[%emt 0:00:40]} 27. Qh5 {[%emt 0:00:26]} 1-0

[Event "WYCC 2018 O14"]
[Site "Halkidiki"]
[Date "2018.10.20"]
[Round "1"]
[White "Manafov, Vugar"]
[Black "Bousmaha, Wassel"]
[Result "1-0"]
[ECO "A08"]
[WhiteElo "2245"]
[BlackElo "1826"]
[Annotator "NA"]
[PlyCount "55"]
[EventDate "2018.10.20"]
[EventType "swiss"]
[EventCountry "GRE"]
[SourceTitle "playchess.com"]
[Source "ChessBase"]
[SourceQuality "1"]
[TimeControl "40/5400+30:1800+30"]

1. Nf3 {[%emt 0:00:00]} d5 {[%emt 0:00:00]} 2. g3 {[%emt 0:00:00]} c5 {[%emt 0:00:00]} 3. Bg2 {[%emt 0:00:00]} Nc6 {[%emt 0:00:00]} 4. O-O {[%emt 0:00:00]} Nf6 {[%emt 0:00:06]} 5. d3 {[%emt 0:00:00]} e5 {[%emt 0:00:14]} 6. Nbd2 {[%emt 0:01:37]} Bd6 {[%emt 0:06:10]} 7. e4 {[%emt 0:00:19]} d4 {[%emt 0:00:37]} 8. h3 {[%emt 0:01:41]} O-O {[%emt 0:00:43]} 9. Ne1 {[%emt 0:01:00]} Ne8 {[%emt 0:01:38]} 10. f4 {[%emt 0:00:45]} f5 {[%emt 0:00:39]} 11. exf5 {[%emt 0:00:50]} Rxf5 {[%emt 0:01:40]} 12. Ne4 {[%emt 0:02:04]} exf4 $14 {[%emt 0:03:32]} 13. Nxd6 {[%emt 0:00:22]} Nxd6 {[%emt 0:02:45]} 14. Bxf4 {[%emt 0:00:18]} Ne7 {[%emt 0:09:51]} 15. Nf3 {[%emt 0:08:26]} Rf8 {[%emt 0:12:14]} 16. Qd2 {[%emt 0:05:08]} h6 {[%emt 0:10:26]} 17. Rae1 {[%emt 0:22:31]} Nd5 {[%emt 0:00:44]} 18. Ne5 {[%emt 0:01:00]} Nxf4 {[%emt 0:02:31]} 19. Rxf4 {[%emt 0:01:19]} Nf5 {[%emt 0:01:20]} 20. Ref1 {[%emt 0:05:00]} Rf6 {[%emt 0:05:31]} 21. Ng4 {[%emt 0:02:52]} Rf7 {[%emt 0:09:02]} 22. Be4 {[%emt 0:02:50]} Qg5 {[%emt 0:11:15]} 23. Bd5 {[%emt 0:00:18]} h5 {[%emt 0:00:45]} 24. Bxf7+ {[%emt 0:00:02]} Kxf7 {[%emt 0:00:07]} 25. Rxf5+ {[%emt 0:00:05]} Qxf5 {[%emt 0:00:25]} 26. Rxf5+ {[%emt 0:00:03]} Bxf5 {[%emt 0:00:07]} 27. Qf4 {[%emt 0:00:01]} Ke6 {[%emt 0:00:13]} 28. Qe5+ {[%emt 0:00:09]} 1-0

[Event "WYCC 2018 O14"]
[Site "Halkidiki"]
[Date "2018.10.20"]
[Round "1"]
[White "Czopor, Maciej"]
[Black "Stamatiou, Rodolfos"]
[Result "1/2-1/2"]
[ECO "B47"]
[WhiteElo "2219"]
[BlackElo "1820"]
[Annotator "NA"]
[PlyCount "47"]
[EventDate "2018.10.20"]
[EventType "swiss"]
[EventCountry "GRE"]
[SourceTitle "playchess.com"]
[Source "ChessBase"]
[SourceQuality "1"]
[TimeControl "40/5400+30:1800+30"]

1. e4 {[%emt 0:00:00]} c5 {[%emt 0:00:00]} 2. Nf3 {[%emt 0:00:00]} e6 {[%emt 0:00:08]} 3. d4 {[%emt 0:00:01]} cxd4 {[%emt 0:00:15]} 4. Nxd4 {[%emt 0:00:14]} Nc6 5. Nc3 {[%emt 0:01:29]} Qc7 {[%emt 0:00:45]} 6. Be2 {[%emt 0:01:23]} Nf6 {[%emt 0:02:59]} 7. Be3 {[%emt 0:04:23]} a6 {[%emt 0:05:25]} 8. O-O {[%emt 0:00:53]} b5 {[%emt 0:05:36]} 9. Nxc6 {[%emt 0:07:12]} dxc6 {[%emt 0:01:07] LiveBook: 134 Games} 10. f4 $14 {[%emt 0:03:35]} Bb4 {[%emt 0:09:19]} 11. Bf3 {[%emt 0:19:54]} O-O {[%emt 0:04:04]} 12. Qe1 {[%emt 0:07:24]} Bb7 {[%emt 0:10:21]} 13. Nxb5 {[%emt 0:16:42]} cxb5 {[%emt 0:08:02]} 14. Qxb4 a5 15. Qxb5 {[%emt 0:09:40]} Ba6 {[%emt 0:01:26]} 16. Qg5 {[%emt 0:01:37]} Bxf1 17. Rxf1 {[%emt 0:02:41]} h6 {[%emt 0:06:24]} 18. Qg3 {[%emt 0:00:41]} Qxc2 {[%emt 0:03:36]} 19. Bd4 {[%emt 0:02:45]} Kh8 {[%emt 0:03:12]} 20. Qh4 {[%emt 0:02:52]} Ng8 {[%emt 0:04:07]} 21. Qg4 {[%emt 0:03:50]} Nf6 {[%emt 0:01:06]} 22. Qh4 {[%emt 0:02:11]} Ng8 {[%emt 0:00:14]} 23. Qg4 {[%emt 0:03:06]} Nf6 {[%emt 0:00:22]} 24. Qh4 {[%emt 0:00:47]} 1/2-1/2